[Event "Budapest Spring Festival 2019"]
[Site "Budapest"]
[Date "2019.04.16"]
[Round "8.29"]
[White "Zentai, Peter"]
[Black "Taylor, Adam C"]
[Result "0-1"]
[ECO "E32"]
[WhiteElo "2263"]
[BlackElo "2398"]
[Annotator "NA RC"]
[PlyCount "84"]
[EventDate "2019.04.09"]
[EventType "swiss"]
[EventCountry "HUN"]
[SourceTitle "playchess.com"]
[Source "ChessBase"]
[SourceQuality "1"]
[TimeControl "40/5400+30:1800+30"]

1. d4 Nf6 {[%emt 0:00:33]} 2. c4 {[%emt 0:04:26]} e6 {[%emt 0:00:04]} 3. Nc3 {[%emt 0:00:05]} Bb4 {[%emt 0:00:04]} 4. Qc2 {[%emt 0:00:19]} O-O {[%emt 0:00:08]} 5. a3 {[%emt 0:03:39]} Bxc3+ {[%emt 0:00:06]} 6. Qxc3 {[%emt 0:00:02]} b6 {[%emt 0:00:02]} 7. Bg5 {[%emt 0:00:43]} Bb7 {[%emt 0:00:29]} 8. f3 {[%emt 0:00:52]} d6 {[%emt 0:00:33]} 9. e4 {[%emt 0:03:21]} c5 {[%emt 0:01:53]} 10. d5 {[%emt 0:07:08]} Nbd7 {[%emt 0:01:22]} 11. Nh3 {[%emt 0:00:41]} exd5 {[%emt 0:01:48]} 12. cxd5 {[%emt 0:00:21]} Re8 {[%emt 0:00:05]} 13. O-O-O {[%emt 0:02:44]} c4 {[%emt 0:00:03]} 14. Kb1 {[%emt 0:09:59]} b5 {[%emt 0:00:07]} 15. Nf2 {[%emt 0:03:31]} a5 {[%emt 0:01:37]} 16. a4 {[%emt 0:08:52]} Ba6 {[%emt 0:33:32]} 17. axb5 {[%emt 0:01:20]} Bxb5 {[%emt 0:00:06]} 18. Qa3 {[%emt 0:07:12]} Qc7 {[%emt 0:06:12]} 19. Rc1 {[%emt 0:03:00]} Rab8 {[%emt 0:01:07]} 20. Nd1 {[%emt 0:06:36]} Ba6 {[%emt 0:01:34]} 21. Bd2 {[%emt 0:04:01]} Nc5 {[%emt 0:01:35]} 22. Bxc4 {[%emt 0:08:16]} Bxc4 {[%emt 0:02:46]} 23. Rxc4 {[%emt 0:00:01]} Qd7 {[%emt 0:00:13]} 24. Rc3 {[%emt 0:15:38]} a4 {[%emt 0:06:50]} 25. Be3 {[%emt 0:00:34]} Nxd5 {[%emt 0:01:27]} 26. exd5 {[%emt 0:01:11]} Qf5+ {[%emt 0:00:05]} 27. Rc2 {[%emt 0:01:35]} Rb3 {[%emt 0:01:47]} 28. Qa2 {[%emt 0:00:01]} Rc8 {[%emt 0:06:08]} 29. Bxc5 {[%emt 0:02:01]} Rxc5 {[%emt 0:00:11]} 30. Ne3 {[%emt 0:00:06]} Rxe3 {[%emt 0:00:52]} 31. Qxa4 {[%emt 0:00:01]} h5 {[%emt 0:00:58]} 32. Rhc1 {[%emt 0:01:32]} Rxd5 {[%emt 0:02:41]} 33. Qa8+ {[%emt 0:01:23]} Kh7 {[%emt 0:00:03]} 34. Qc8 {[%emt 0:00:10]} Qg6 {[%emt 0:00:28]} 35. Qa6 {[%emt 0:03:03]} Rd2 {[%emt 0:13:07]} 36. Qa4 {[%emt 0:00:01]} Rxg2 {[%emt 0:00:25]} 37. Ka2 {[%emt 0:00:38]} Qe6+ {[%emt 0:01:10]} 38. Qc4 {[%emt 0:01:05]} d5 {[%emt 0:03:48]} 39. Qd4 {[%emt 0:01:12]} Rxc2 {[%emt 0:00:31]} 40. Rxc2 {[%emt 0:00:00]} Qa6+ {[%emt 0:00:00]} 41. Kb1 {[%emt 0:00:59]} Re1+ {[%emt 0:00:04]} 42. Rc1 {[%emt 0:00:18]} Qg6+ {[%emt 0:00:02]} 0-1

[Event "Budapest Spring Festival 2019"]
[Site "Budapest"]
[Date "2019.04.16"]
[Round "8.35"]
[White "Nguyen, Van Thanh"]
[Black "Torok, Sandor"]
[Result "0-1"]
[ECO "E11"]
[WhiteElo "2391"]
[BlackElo "2273"]
[Annotator "NA RC"]
[PlyCount "64"]
[EventDate "2019.04.09"]
[EventType "swiss"]
[EventCountry "HUN"]
[SourceTitle "playchess.com"]
[Source "ChessBase"]
[SourceQuality "1"]
[TimeControl "40/5400+30:1800+30"]

1. d4 {[%emt 0:00:04]} Nf6 {[%emt 0:00:04]} 2. Nf3 {[%emt 0:00:15]} e6 {[%emt 0:00:18]} 3. c4 {[%emt 0:00:13]} Bb4+ {[%emt 0:00:18]} 4. Nbd2 {[%emt 0:00:11]} d5 {[%emt 0:00:58]} 5. e3 {[%emt 0:01:15]} O-O {[%emt 0:00:05]} 6. a3 {[%emt 0:00:24]} Be7 {[%emt 0:00:42]} 7. Be2 {[%emt 0:00:42]} c6 {[%emt 0:01:59]} 8. O-O {[%emt 0:00:39]} Nbd7 {[%emt 0:00:20]} 9. Qc2 {[%emt 0:01:08]} b6 {[%emt 0:08:14]} 10. e4 {[%emt 0:02:19]} Bb7 {[%emt 0:04:01]} 11. e5 {[%emt 0:03:36]} Ne8 {[%emt 0:10:19]} 12. Bd3 {[%emt 0:04:12]} g6 {[%emt 0:00:43]} 13. cxd5 {[%emt 0:00:54]} exd5 {[%emt 0:05:43]} 14. e6 {[%emt 0:09:56]} fxe6 {[%emt 0:01:27]} 15. Re1 {[%emt 0:00:34]} Ng7 {[%emt 0:00:23]} 16. Nf1 {[%emt 0:00:33]} Rxf3 {[%emt 0:10:26]} 17. gxf3 {[%emt 0:00:39]} Bd6 {[%emt 0:12:25]} 18. Bh6 {[%emt 0:06:59]} Qf6 {[%emt 0:03:09]} 19. Qe2 {[%emt 0:05:15]} Re8 {[%emt 0:13:01]} 20. Ne3 {[%emt 0:06:52]} Qh4 {[%emt 0:09:38]} 21. Ng4 {[%emt 0:01:48]} Nf5 {[%emt 0:04:36]} 22. Qd2 {[%emt 0:01:31]} Nxd4 {[%emt 0:00:04]} 23. Qe3 {[%emt 0:00:30]} Ne5 {[%emt 0:07:12]} 24. Nxe5 {[%emt 0:00:55]} Bxe5 {[%emt 0:00:03]} 25. f4 {[%emt 0:00:32]} Bf6 {[%emt 0:00:58]} 26. Bg5 {[%emt 0:03:36]} Bxg5 {[%emt 0:01:26]} 27. fxg5 {[%emt 0:00:13]} c5 {[%emt 0:00:29]} 28. Rac1 {[%emt 0:04:30]} Qg4+ {[%emt 0:01:39]} 29. Kf1 {[%emt 0:00:19]} Nf3 {[%emt 0:00:28]} 30. Red1 {[%emt 0:00:13]} d4 {[%emt 0:00:37]} 31. Bf5 {[%emt 0:00:46]} Nxh2+ {[%emt 0:00:54]} 32. Ke1 {[%emt 0:00:08]} Qg1+ {[%emt 0:00:42]} 0-1

[Event "Budapest Spring Festival 2019"]
[Site "Budapest"]
[Date "2019.04.16"]
[Round "8.36"]
[White "Havanecz, Bianka"]
[Black "Ashwath, R.."]
[Result "1/2-1/2"]
[ECO "D38"]
[WhiteElo "2265"]
[BlackElo "2388"]
[Annotator "NA"]
[PlyCount "20"]
[EventDate "2019.04.09"]
[EventType "swiss"]
[EventCountry "HUN"]
[SourceTitle "playchess.com"]
[Source "ChessBase"]
[SourceQuality "1"]
[TimeControl "40/5400+30:1800+30"]

1. d4 {[%emt 0:00:02]} Nf6 {[%emt 0:03:33]} 2. c4 {[%emt 0:00:07]} e6 {[%emt 0:00:03]} 3. Nf3 {[%emt 0:00:11]} d5 {[%emt 0:00:13]} 4. Nc3 {[%emt 0:00:06]} Bb4 {[%emt 0:00:41]} 5. Qa4+ {[%emt 0:00:06]} Nc6 {[%emt 0:00:33]} 6. e3 {[%emt 0:00:06]} O-O {[%emt 0:00:52]} 7. Qc2 {[%emt 0:00:08]} dxc4 {[%emt 0:06:32]} 8. Bxc4 {[%emt 0:00:07]} Bd6 {[%emt 0:01:11]} 9. O-O {[%emt 0:00:30]} e5 {[%emt 0:01:30]} 10. h3 {[%emt 0:00:38]} a6 {[%emt 0:37:11]} 1/2-1/2

[Event "Budapest Spring Festival 2019"]
[Site "Budapest"]
[Date "2019.04.16"]
[Round "8.37"]
[White "Terbe, Julianna"]
[Black "Lye, Lik Zang"]
[Result "1/2-1/2"]
[ECO "A20"]
[WhiteElo "2265"]
[BlackElo "2377"]
[Annotator "NA"]
[PlyCount "25"]
[EventDate "2019.04.09"]
[EventType "swiss"]
[EventCountry "HUN"]
[SourceTitle "playchess.com"]
[Source "ChessBase"]
[SourceQuality "1"]
[TimeControl "40/5400+30:1800+30"]

1. c4 {[%emt 0:00:02]} e5 {[%emt 0:00:08]} 2. g3 {[%emt 0:00:14]} Nf6 {[%emt 0:00:11]} 3. Bg2 {[%emt 0:00:13]} c6 {[%emt 0:00:33]} 4. d4 {[%emt 0:00:24]} exd4 {[%emt 0:02:02]} 5. Qxd4 {[%emt 0:00:09]} d5 {[%emt 0:00:29]} 6. Nf3 {[%emt 0:00:08]} Be7 {[%emt 0:12:16]} 7. cxd5 {[%emt 0:00:38]} cxd5 {[%emt 0:04:39]} 8. O-O {[%emt 0:02:26]} Nc6 {[%emt 0:00:55]} 9. Qa4 {[%emt 0:00:04]} O-O {[%emt 0:00:35]} 10. Nc3 {[%emt 0:00:05]} Qb6 {[%emt 0:07:41]} 11. Qb5 {[%emt 0:01:52]} d4 {[%emt 0:15:38]} 12. Qxb6 {[%emt 0:00:06]} axb6 {[%emt 0:00:03]} 13. Nb5 {[%emt 0:00:59]} 1/2-1/2

[Event "Budapest Spring Festival 2019"]
[Site "Budapest"]
[Date "2019.04.16"]
[Round "8.38"]
[White "Wong, Jianwen"]
[Black "Popovics, Adam"]
[Result "1/2-1/2"]
[ECO "A15"]
[WhiteElo "2185"]
[BlackElo "2375"]
[Annotator "RC"]
[PlyCount "116"]
[EventDate "2019.04.09"]
[EventType "swiss"]
[EventCountry "HUN"]
[SourceTitle "playchess.com"]
[Source "ChessBase"]
[SourceQuality "1"]
[TimeControl "40/5400+30:1800+30"]

1. c4 {[%emt 0:00:01]} Nf6 {[%emt 0:00:14]} 2. g3 {[%emt 0:00:06]} g6 {[%emt 0:00:26]} 3. Bg2 {[%emt 0:00:06]} Bg7 {[%emt 0:00:05]} 4. Nc3 {[%emt 0:00:24]} O-O {[%emt 0:00:13]} 5. e4 {[%emt 0:00:38]} d6 {[%emt 0:00:19]} 6. Nge2 {[%emt 0:02:12]} e5 {[%emt 0:01:27]} 7. O-O {[%emt 0:01:19]} Nc6 {[%emt 0:01:51]} 8. d3 {[%emt 0:00:09]} Nh5 {[%emt 0:05:36]} 9. Be3 {[%emt 0:08:37]} Nd4 {[%emt 0:00:52]} 10. Qd2 {[%emt 0:01:59]} c6 {[%emt 0:07:16]} 11. Bg5 {[%emt 0:12:25]} f6 {[%emt 0:01:18]} 12. Be3 {[%emt 0:00:43]} f5 {[%emt 0:00:34]} 13. Bg5 {[%emt 0:00:19]} Qe8 {[%emt 0:06:52]} 14. Nxd4 {[%emt 0:02:13]} exd4 {[%emt 0:00:05]} 15. Ne2 {[%emt 0:00:11]} fxe4 {[%emt 0:07:18]} 16. dxe4 {[%emt 0:00:44]} Be6 {[%emt 0:05:47]} 17. b3 {[%emt 0:10:01]} c5 {[%emt 0:00:11]} 18. a4 {[%emt 0:04:31]} b6 {[%emt 0:04:29]} 19. h3 {[%emt 0:05:27]} Qf7 {[%emt 0:13:32]} 20. g4 {[%emt 0:03:51]} d3 {[%emt 0:01:38]} 21. Qxd3 {[%emt 0:07:19]} Bxa1 {[%emt 0:00:54]} 22. Rxa1 {[%emt 0:01:07]} Qxf2+ {[%emt 0:10:08]} 23. Kh2 {[%emt 0:00:48]} Ng7 {[%emt 0:00:17]} 24. Rf1 {[%emt 0:00:26]} Qxf1 {[%emt 0:00:07]} 25. Bxf1 {[%emt 0:00:04]} Rxf1 {[%emt 0:00:05]} 26. Nf4 {[%emt 0:01:20]} Re1 {[%emt 0:04:17]} 27. Qc3 {[%emt 0:06:31]} Rxe4 {[%emt 0:00:22]} 28. Qf3 {[%emt 0:00:03]} d5 {[%emt 0:02:47]} 29. cxd5 {[%emt 0:00:05]} Rxf4 {[%emt 0:00:08]} 30. Bxf4 {[%emt 0:00:12]} Bd7 {[%emt 0:00:52]} 31. Be5 {[%emt 0:02:20]} Rf8 {[%emt 0:00:08]} 32. Qg3 {[%emt 0:00:05]} Rf7 {[%emt 0:00:43]} 33. Bc3 {[%emt 0:00:11]} h6 {[%emt 0:02:11]} 34. Qb8+ {[%emt 0:00:27]} Ne8 {[%emt 0:00:17]} 35. Kg3 {[%emt 0:00:57]} Kh7 {[%emt 0:00:54]} 36. Be5 {[%emt 0:02:02]} c4 {[%emt 0:00:54]} 37. bxc4 {[%emt 0:03:46]} Bxa4 {[%emt 0:00:10]} 38. Qd8 {[%emt 0:00:29]} Bd7 {[%emt 0:01:09]} 39. Qa8 {[%emt 0:04:31]} Ba4 {[%emt 0:01:10]} 40. Bd4 {[%emt 0:00:00]} Ng7 {[%emt 0:00:00]} 41. Bxb6 {[%emt 0:01:15]} Bb3 {[%emt 0:03:33]} 42. Bxa7 {[%emt 0:05:05]} Bxc4 {[%emt 0:00:07]} 43. d6 {[%emt 0:00:42]} Be6 {[%emt 0:04:13]} 44. Bd4 {[%emt 0:06:07]} Bd7 {[%emt 0:02:07]} 45. Be5 {[%emt 0:01:40]} Be6 {[%emt 0:00:20]} 46. Bf4 {[%emt 0:03:01]} h5 {[%emt 0:00:41]} 47. Be5 {[%emt 0:03:26]} Bd7 {[%emt 0:00:29]} 48. Kh4 {[%emt 0:00:51]} Be6 {[%emt 0:05:49]} 49. Qe4 {[%emt 0:02:17]} Bd7 {[%emt 0:00:53]} 50. Bc3 {[%emt 0:10:34]} Ne6 {[%emt 0:00:36]} 51. Bd2 {[%emt 0:00:49]} Ng7 {[%emt 0:02:03]} 52. Qe3 {[%emt 0:01:44]} Kg8 {[%emt 0:01:03]} 53. Qh6 {[%emt 0:00:52]} hxg4 {[%emt 0:00:23]} 54. hxg4 {[%emt 0:02:07]} Rf1 {[%emt 0:27:06]} 55. Qe3 {[%emt 0:02:17]} Ne6 {[%emt 0:03:02]} 56. Qd3 {[%emt 0:05:46]} Rh1+ {[%emt 0:00:58]} 57. Kg3 {[%emt 0:00:03]} Rg1+ {[%emt 0:00:15]} 58. Kf3 {[%emt 0:01:54]} Rxg4 {[%emt 0:00:06] Ke4} 1/2-1/2

[Event "Budapest Spring Festival 2019"]
[Site "Budapest"]
[Date "2019.04.17"]
[Round "9.2"]
[White "Ter-Sahakyan, Samvel"]
[Black "Hakobyan, Aram"]
[Result "1/2-1/2"]
[ECO "D30"]
[WhiteElo "2601"]
[BlackElo "2554"]
[Annotator "RC"]
[PlyCount "22"]
[EventDate "2019.04.09"]
[EventType "swiss"]
[EventCountry "HUN"]
[SourceTitle "playchess.com"]
[Source "ChessBase"]
[SourceQuality "1"]
[TimeControl "40/5400+30:1800+30"]

1. d4 {[%emt 0:00:10]} d5 {[%emt 0:00:25]} 2. c4 {[%emt 0:00:15]} e6 {[%emt 0:00:25]} 3. Nf3 {[%emt 0:00:35]} Nf6 {[%emt 0:00:24]} 4. g3 {[%emt 0:00:28]} Bb4+ {[%emt 0:00:34]} 5. Bd2 {[%emt 0:01:09]} Be7 {[%emt 0:00:17]} 6. Bg2 {[%emt 0:00:09]} O-O {[%emt 0:01:00]} 7. O-O {[%emt 0:00:09]} Nbd7 {[%emt 0:00:46]} 8. Qc2 {[%emt 0:02:16]} c6 {[%emt 0:01:24]} 9. a4 {[%emt 0:01:49]} a5 {[%emt 0:01:31]} 10. Rc1 {[%emt 0:02:11]} Ne4 {[%emt 0:00:53]} 11. Be1 {[%emt 0:01:25]} f5 {[%emt 0:01:02]} 1/2-1/2

[Event "Budapest Spring Festival 2019"]
[Site "Budapest"]
[Date "2019.04.17"]
[Round "9.17"]
[White "Gschnitzer, Adrian"]
[Black "Gorodetzky, David"]
[Result "1/2-1/2"]
[ECO "A28"]
[WhiteElo "2380"]
[BlackElo "2461"]
[Annotator "RC"]
[PlyCount "48"]
[EventDate "2019.04.09"]
[EventType "swiss"]
[EventCountry "HUN"]
[SourceTitle "playchess.com"]
[Source "ChessBase"]
[SourceQuality "1"]
[TimeControl "40/5400+30:1800+30"]

1. c4 {[%emt 0:00:04]} Nf6 {[%emt 0:02:10]} 2. Nc3 {[%emt 0:00:10]} e5 {[%emt 0:03:31]} 3. Nf3 {[%emt 0:00:13]} Nc6 {[%emt 0:00:49]} 4. e3 {[%emt 0:00:09]} Bb4 {[%emt 0:02:38]} 5. Qc2 {[%emt 0:00:19]} Bxc3 {[%emt 0:03:12]} 6. Qxc3 {[%emt 0:00:08]} Qe7 {[%emt 0:00:48]} 7. b3 {[%emt 0:00:11]} d5 {[%emt 0:01:42]} 8. d4 {[%emt 0:00:14]} exd4 {[%emt 0:02:10]} 9. Nxd4 {[%emt 0:00:11]} Nxd4 {[%emt 0:01:49]} 10. Qxd4 {[%emt 0:00:09]} c5 {[%emt 0:00:03]} 11. Qf4 {[%emt 0:00:11]} g5 {[%emt 0:00:02]} 12. Qxg5 {[%emt 0:00:16]} Rg8 {[%emt 0:00:39]} 13. Qf4 {[%emt 0:00:12]} Nh5 {[%emt 0:05:07]} 14. Qh6 {[%emt 0:00:12]} Qe5 {[%emt 0:01:59]} 15. Rb1 {[%emt 0:00:09]} Rg6 {[%emt 0:18:35]} 16. Qxh7 {[%emt 0:00:09]} Nf4 {[%emt 0:02:58]} 17. cxd5 {[%emt 0:00:25]} Bg4 {[%emt 0:05:55]} 18. h3 {[%emt 0:00:15]} Bf5 {[%emt 0:14:24]} 19. Bb2 {[%emt 0:01:45]} Qxd5 {[%emt 0:09:54]} 20. Qh8+ {[%emt 0:09:42]} Kd7 {[%emt 0:01:59]} 21. Bb5+ {[%emt 0:05:48]} Kc7 {[%emt 0:04:03]} 22. Qe5+ {[%emt 0:00:14]} Qxe5 {[%emt 0:02:16]} 23. Bxe5+ {[%emt 0:00:10]} Kb6 {[%emt 0:00:02]} 24. Bxf4 {[%emt 0:00:35]} Bxb1 {[%emt 0:00:59]} 1/2-1/2

[Event "Budapest Spring Festival 2019"]
[Site "Budapest"]
[Date "2019.04.17"]
[Round "9.20"]
[White "Ankit, R. Rajpara"]
[Black "Ruff, Maximilian"]
[Result "1/2-1/2"]
[ECO "A57"]
[WhiteElo "2462"]
[BlackElo "2313"]
[Annotator "RC"]
[PlyCount "53"]
[EventDate "2019.04.09"]
[EventType "swiss"]
[EventCountry "HUN"]
[SourceTitle "playchess.com"]
[Source "ChessBase"]
[SourceQuality "1"]
[TimeControl "40/5400+30:1800+30"]

1. d4 {[%emt 0:00:47]} Nf6 {[%emt 0:00:08]} 2. c4 {[%emt 0:00:09]} c5 {[%emt 0:00:39]} 3. d5 {[%emt 0:00:06]} b5 {[%emt 0:00:06]} 4. Qc2 {[%emt 0:00:09]} b4 {[%emt 0:00:23]} 5. e4 {[%emt 0:00:38]} d6 {[%emt 0:01:01]} 6. a3 {[%emt 0:00:33]} bxa3 {[%emt 0:03:16]} 7. Rxa3 {[%emt 0:00:09]} g6 {[%emt 0:01:18]} 8. Nf3 {[%emt 0:02:54]} Bg7 {[%emt 0:06:44]} 9. Nc3 {[%emt 0:01:33]} O-O {[%emt 0:00:21]} 10. h3 {[%emt 0:07:16]} e6 {[%emt 0:07:58]} 11. Be2 {[%emt 0:01:55]} Na6 {[%emt 0:01:21]} 12. O-O {[%emt 0:11:46]} Nb4 {[%emt 0:01:56]} 13. Qd1 {[%emt 0:04:17]} exd5 {[%emt 0:00:39]} 14. cxd5 {[%emt 0:02:19]} Re8 {[%emt 0:00:47]} 15. Nd2 {[%emt 0:01:49]} a6 {[%emt 0:12:56]} 16. Re1 {[%emt 0:12:28]} Ra7 {[%emt 0:00:38]} 17. Rf1 {[%emt 0:04:51]} Rae7 {[%emt 0:09:25]} 18. Bf3 {[%emt 0:02:22]} Nd7 {[%emt 0:03:13]} 19. Nc4 {[%emt 0:00:57]} Ne5 {[%emt 0:00:30]} 20. Nxe5 {[%emt 0:05:37]} Bxe5 {[%emt 0:00:35]} 21. Be3 {[%emt 0:07:05]} Rb7 {[%emt 0:04:23]} 22. Qd2 {[%emt 0:03:46]} Bd7 {[%emt 0:06:54]} 23. Be2 {[%emt 0:07:26]} Qb6 {[%emt 0:03:23]} 24. Na4 {[%emt 0:06:44]} Qc7 {[%emt 0:01:54]} 25. Nc3 {[%emt 0:00:18]} Qb6 {[%emt 0:00:06]} 26. Na4 {[%emt 0:00:33]} Qc7 {[%emt 0:00:46]} 27. Nc3 {[%emt 0:00:36]} 1/2-1/2

[Event "Budapest Spring Festival 2019"]
[Site "Budapest"]
[Date "2019.04.17"]
[Round "9.22"]
[White "Torok, Sandor"]
[Black "Bronstein, Or"]
[Result "0-1"]
[ECO "B51"]
[WhiteElo "2273"]
[BlackElo "2387"]
[Annotator "RC"]
[PlyCount "84"]
[EventDate "2019.04.09"]
[EventType "swiss"]
[EventCountry "HUN"]
[SourceTitle "playchess.com"]
[Source "ChessBase"]
[SourceQuality "1"]
[TimeControl "40/5400+30:1800+30"]

1. e4 {[%emt 0:00:03]} c5 {[%emt 0:00:48]} 2. Nf3 {[%emt 0:00:06]} d6 {[%emt 0:00:45]} 3. Bb5+ {[%emt 0:00:07]} Nd7 {[%emt 0:00:07]} 4. d4 {[%emt 0:00:20]} cxd4 {[%emt 0:01:07]} 5. Qxd4 {[%emt 0:00:07]} a6 {[%emt 0:00:03]} 6. Bxd7+ {[%emt 0:00:06]} Bxd7 {[%emt 0:00:02]} 7. c4 {[%emt 0:00:11]} Nf6 {[%emt 0:00:15]} 8. Nc3 {[%emt 0:01:35]} g6 {[%emt 0:00:31]} 9. O-O {[%emt 0:00:21]} Bg7 {[%emt 0:00:04]} 10. Qd3 {[%emt 0:16:03]} O-O {[%emt 0:00:28]} 11. Nd4 {[%emt 0:17:49]} Ng4 {[%emt 0:11:17]} 12. Nf3 {[%emt 0:11:14]} b5 {[%emt 0:12:12]} 13. cxb5 {[%emt 0:01:49]} axb5 {[%emt 0:00:48]} 14. Nxb5 {[%emt 0:01:02]} f5 {[%emt 0:13:21]} 15. Nbd4 {[%emt 0:10:03]} fxe4 {[%emt 0:16:02]} 16. Qxe4 {[%emt 0:04:30]} Nf6 {[%emt 0:00:16]} 17. Qe3 {[%emt 0:05:46]} Nd5 {[%emt 0:03:18]} 18. Qe4 {[%emt 0:04:02]} Nf6 {[%emt 0:01:11]} 19. Qe3 {[%emt 0:03:07]} Nd5 {[%emt 0:05:31]} 20. Qb3 {[%emt 0:00:15]} e6 {[%emt 0:00:16]} 21. Re1 {[%emt 0:00:34]} Qf6 {[%emt 0:02:12]} 22. Bd2 {[%emt 0:02:08]} Rab8 {[%emt 0:02:03]} 23. Qa3 {[%emt 0:00:26]} e5 {[%emt 0:02:58]} 24. Nc2 {[%emt 0:07:16]} h6 {[%emt 0:04:49]} 25. Nb4 {[%emt 0:01:13]} Nb6 {[%emt 0:09:31]} 26. Rac1 {[%emt 0:03:32]} g5 {[%emt 0:00:08]} 27. Be3 {[%emt 0:00:30]} Be6 {[%emt 0:06:40]} 28. Qd3 {[%emt 0:04:47]} g4 {[%emt 0:03:20]} 29. Nd2 {[%emt 0:01:42]} d5 {[%emt 0:00:04]} 30. Rc6 {[%emt 0:00:06]} d4 {[%emt 0:01:35]} 31. Bxd4 {[%emt 0:00:53]} Na4 {[%emt 0:02:47]} 32. Na6 {[%emt 0:02:51]} exd4 {[%emt 0:00:33]} 33. Rcxe6 {[%emt 0:00:49]} Qxf2+ {[%emt 0:00:02]} 34. Kh1 {[%emt 0:00:05]} Rxb2 {[%emt 0:01:01]} 35. Qc4 {[%emt 0:00:50]} Kh8 {[%emt 0:00:39]} 36. R6e2 {[%emt 0:00:33]} Qf6 {[%emt 0:00:37]} 37. Qxa4 {[%emt 0:01:00]} Rxd2 {[%emt 0:00:01]} 38. Re8 {[%emt 0:00:06]} Rf2 {[%emt 0:00:53]} 39. Rg1 {[%emt 0:00:21]} d3 {[%emt 0:00:37]} 40. Rxf8+ {[%emt 0:00:00]} Bxf8 {[%emt 0:00:00]} 41. Qc4 {[%emt 0:06:27]} d2 {[%emt 0:01:19]} 42. Nc5 {[%emt 0:00:25]} Rxg2 {[%emt 0:00:51]} 0-1

[Event "Budapest Spring Festival 2019"]
[Site "Budapest"]
[Date "2019.04.17"]
[Round "9.25"]
[White "Bodi, Tibor"]
[Black "Akesson, Ralf"]
[Result "1/2-1/2"]
[ECO "A05"]
[WhiteElo "2240"]
[BlackElo "2346"]
[Annotator "RC"]
[PlyCount "83"]
[EventDate "2019.04.09"]
[EventType "swiss"]
[EventCountry "HUN"]
[SourceTitle "playchess.com"]
[Source "ChessBase"]
[SourceQuality "1"]
[TimeControl "40/5400+30:1800+30"]

1. Nf3 {[%emt 0:00:08]} Nf6 {[%emt 0:01:31]} 2. c4 {[%emt 0:00:12]} e6 {[%emt 0:01:13]} 3. b3 {[%emt 0:00:09]} Be7 {[%emt 0:01:05]} 4. Bb2 {[%emt 0:00:12]} O-O {[%emt 0:00:15]} 5. e3 {[%emt 0:00:32]} b6 {[%emt 0:02:54]} 6. d4 {[%emt 0:00:33]} Bb7 {[%emt 0:00:16]} 7. Nbd2 {[%emt 0:00:15]} c5 {[%emt 0:01:34]} 8. dxc5 {[%emt 0:02:21]} bxc5 {[%emt 0:00:47]} 9. Be2 {[%emt 0:00:27]} d6 {[%emt 0:00:47]} 10. O-O {[%emt 0:00:14]} a5 {[%emt 0:01:24]} 11. Qc2 {[%emt 0:00:34]} h6 {[%emt 0:06:34]} 12. Rad1 {[%emt 0:07:27]} Nc6 {[%emt 0:09:29]} 13. Ne4 {[%emt 0:07:27]} Nb4 {[%emt 0:02:29]} 14. Nxf6+ {[%emt 0:00:11]} Bxf6 {[%emt 0:00:13]} 15. Qb1 {[%emt 0:05:43]} Bxb2 {[%emt 0:00:19]} 16. Qxb2 {[%emt 0:00:04]} Qe7 {[%emt 0:04:00]} 17. Rd2 {[%emt 0:01:21]} f5 {[%emt 0:02:13]} 18. Rfd1 {[%emt 0:00:42]} Rad8 {[%emt 0:00:30]} 19. Qc3 {[%emt 0:01:28]} Nc6 {[%emt 0:04:46]} 20. Ne1 {[%emt 0:00:53]} e5 {[%emt 0:03:03]} 21. Nd3 {[%emt 0:01:18]} g5 {[%emt 0:01:20]} 22. f4 {[%emt 0:04:02]} exf4 {[%emt 0:04:47]} 23. exf4 {[%emt 0:00:07]} Nd4 {[%emt 0:03:13]} 24. Bf1 {[%emt 0:01:35]} Rde8 {[%emt 0:04:53]} 25. Rf2 {[%emt 0:07:24]} Qc7 {[%emt 0:01:43]} 26. Nc1 {[%emt 0:03:18]} Re4 {[%emt 0:09:38]} 27. Qh3 {[%emt 0:06:18]} Qg7 {[%emt 0:02:32]} 28. fxg5 {[%emt 0:02:46]} hxg5 {[%emt 0:06:58]} 29. Qc3 {[%emt 0:03:17]} g4 {[%emt 0:03:09]} 30. Qxa5 {[%emt 0:01:40]} f4 {[%emt 0:02:51]} 31. Re1 {[%emt 0:09:55]} g3 {[%emt 0:08:50]} 32. hxg3 {[%emt 0:00:26]} Qxg3 {[%emt 0:00:33]} 33. Rxe4 {[%emt 0:04:44]} Bxe4 {[%emt 0:00:04]} 34. Ne2 {[%emt 0:02:10]} Nxe2+ {[%emt 0:05:07]} 35. Rxe2 {[%emt 0:03:02]} Bd3 {[%emt 0:02:25]} 36. Rf2 {[%emt 0:10:05]} Bxf1 {[%emt 0:00:36]} 37. Qd2 {[%emt 0:00:16]} Bxc4 {[%emt 0:03:21]} 38. bxc4 {[%emt 0:00:01]} Rf6 {[%emt 0:00:30]} 39. Qd5+ {[%emt 0:02:01]} Kg7 {[%emt 0:00:30]} 40. Qf3 {[%emt 0:00:00]} Re6 {[%emt 0:00:00]} 41. Qxg3+ {[%emt 0:14:51]} fxg3 {[%emt 0:01:10]} 42. Rf3 {[%emt 0:03:02]} 1/2-1/2

[Event "Budapest Spring Festival 2019"]
[Site "Budapest"]
[Date "2019.04.17"]
[Round "9.26"]
[White "Borhy, Marcell"]
[Black "Risting, Eivind Olav"]
[Result "1/2-1/2"]
[ECO "E04"]
[WhiteElo "2237"]
[BlackElo "2345"]
[Annotator "NA RC"]
[PlyCount "49"]
[EventDate "2019.04.09"]
[EventType "swiss"]
[EventCountry "HUN"]
[SourceTitle "playchess.com"]
[Source "ChessBase"]
[SourceQuality "1"]
[TimeControl "40/5400+30:1800+30"]

1. d4 {[%emt 0:00:03]} Nf6 {[%emt 0:00:15]} 2. c4 {[%emt 0:00:27]} e6 {[%emt 0:00:20]} 3. g3 {[%emt 0:00:16]} d5 {[%emt 0:00:53]} 4. Nf3 {[%emt 0:00:19]} ({Predecessor:} 4. Bg2 dxc4 {½-½ (43) Li,D (2441)-Gajek,R (2444) Innsbruck 2018}) 4... dxc4 {[%emt 0:00:30]} 5. Bg2 {[%emt 0:00:10]} Bb4+ {[%emt 0:00:14]} 6. Bd2 {[%emt 0:00:27]} c5 $146 {[%emt 0:00:29] E04: Open Catalan: 5 Nf3} (6... a5 7. a3 Bxd2+ 8. Nbxd2 b5 9. b3 cxb3 10. Qxb3 c6 11. O-O O-O 12. Rfc1 Bb7 13. Qb2 Nbd7 14. Ne1 Qb8 {0-1 (55) Bluebaum,M (2620)-Anand,V (2773) Germany 2019}) 7. Bxb4 {[%emt 0:09:28]} cxb4 {[%emt 0:00:08]} 8. Ne5 {[%emt 0:06:08]} O-O {[%emt 0:00:30]} 9. Nxc4 {[%emt 0:01:52]} Nc6 {[%emt 0:00:16]} 10. e3 {[%emt 0:00:11]} e5 {[%emt 0:00:17]} 11. d5 {[%emt 0:06:02]} b5 {[%emt 0:00:42]} 12. dxc6 {[%emt 0:01:45]} Qxd1+ {[%emt 0:01:01]} 13. Kxd1 {[%emt 0:00:02]} bxc4 {[%emt 0:00:10]} 14. Nd2 {[%emt 0:01:09]} c3 {[%emt 0:41:10]} 15. bxc3 {[%emt 0:00:10]} bxc3 {[%emt 0:00:05]} 16. Nc4 {[%emt 0:11:16]} e4 {[%emt 0:11:33]} 17. Rc1 {[%emt 0:04:28]} Rd8+ {[%emt 0:06:38]} 18. Ke1 {[%emt 0:05:02]} Rd5 {[%emt 0:00:26]} 19. Rxc3 {[%emt 0:02:07]} Rc5 {[%emt 0:01:11]} 20. Kd2 $11 {[%emt 0:02:54]} Ba6 {[%emt 0:10:40]} 21. Nb2 {[%emt 0:06:58]} Rd8+ {[%emt 0:00:50]} 22. Kc2 {[%emt 0:00:03]} Rxc3+ {[%emt 0:00:12]} 23. Kxc3 {[%emt 0:00:01]} Rc8 {[%emt 0:02:53]} 24. Rd1 {[%emt 0:01:33]} Rxc6+ {[%emt 0:00:08]} 25. Kb3 {[%emt 0:01:33]} 1/2-1/2